Cogmind - Beta 13 @@@ ROGUE MODE // 2024.04.22 @ 15:08:40 Player: monkeman Result: Destroyed by M1-BGX(R) with Subdweller Machine Gun Performance ------------- Evolutions (0) 0 Regions Visited (2) 400 Robots Destroyed (28) 140 Value Destroyed (610) 610 Prototype IDs (4) 80 Alien Tech Used (0) 0 Bonus (0) 0 TOTAL SCORE: 1230 Bonus ------- None Cogmind --------- Core Integrity 0/250 Matter 152/300 Energy 100/100 System Corruption 0% Temperature Cool (0) Movement Treading (320) Ox2 Location -10/Subcaves Parts ------- > --- POWER (1) -------- (None) > --- PROPULSION (2) --- Light Treads Subdweller Monowheel > --- UTILITY (2) ------ High-capacity Storage Unit Targeting Computer > --- WEAPON (2) ------- Autogun Barrage Gun > --- INVENTORY (20) --- Ion Engine Medium Matter Pod (67) Sensor Array Tractor Beam Heavy EM Pulse Gun Heavy EM Pulse Gun Subdweller Laser Subdweller Laser Subdweller Beam Cannon Autogun Autogun Autogun Light Cannon Grenade Launcher Grenade Launcher Hammer Shrapnel Trap Piercing Trap Peak State ------------ > --- POWER ------------ Subdweller Power Source > --- PROPULSION ------- Light Treads Subdweller Monowheel > --- UTILITY ---------- High-capacity Storage Unit Subdweller Optics > --- WEAPON ----------- Autogun Barrage Gun > --- INVENTORY -------- Ion Engine Light Treads Wheel Medium Matter Pod Sensor Array Targeting Computer Tractor Beam Heavy EM Pulse Gun Heavy EM Pulse Gun Subdweller Laser Autogun Autogun Autogun Battle Rifle Light Cannon Grenade Launcher Grenade Launcher Hammer Shrapnel Trap Scrap Shield Fragment [Rating: 15] Favorites ----------- Power Ion Engine Engine Ion Engine Propulsion Light Treads Treads Light Treads Wheel Wheel Utility High-capacity Storage Unit Device Subdweller Optics Storage High-capacity Storage Unit Processor Targeting Computer Protection Light Armor Plating Weapon Autogun Energy Gun Medium Laser Ballistic Gun Autogun Impact Weapon Hammer Build | -11 -10 -10 ------- Run | Yrd Mat Sub Slots Evolved . | . . . Power . | . . . Propulsion . | . . . Utility . | . . . Weapon . | . . . Parts Attached 31 | 7 14 10 Power 4 | 1 2 1 Engine 4 | 1 2 1 Core . | . . . Reactor . | . . . Propulsion 7 | 2 2 3 Treads 3 | 1 1 1 Leg . | . . . Wheel 4 | 1 1 2 Hover . | . . . Flight . | . . . Utility 7 | 2 3 2 Device 3 | 1 1 1 Storage 2 | 1 1 . Processor 1 | . . 1 Hackware . | . . . Protection 1 | . 1 . Artifact . | . . . Weapon 13 | 2 7 4 Energy Gun 2 | 1 1 . Energy Cannon . | . . . Ballistic Gun 9 | 1 5 3 Ballistic Cannon . | . . . Launcher . | . . . Special Weapon . | . . . Impact Weapon 2 | . 1 1 Slashing Weapon . | . . . Piercing Weapon . | . . . Special Melee Weapon . | . . . Unidentified Prototypes . | . . . Parts Lost 9 | . 3 6 Power 3 | . 1 2 Propulsion 4 | . 2 2 Utility 1 | . . 1 Weapon 1 | . . 1 Highest Loss Streak 3 | . 3 2 To Critical Strikes . | . . . Average Slot Usage (%) 98 | . 98 98 Engine 13 | . 13 13 Treads 14 | . 14 14 Wheel 13 | . 13 13 Device 6 | . 8 5 Storage 14 | . 14 14 Processor 1 | . . 2 Protection 5 | . 5 5 Energy Gun 3 | . 8 . Ballistic Gun 23 | . 18 27 Naked Turns . | . . . Heaviest Build 54 | 14 54 54 Greatest Support 20 | 20 20 20 Greatest Overweight (x) 5 | . 5 5 Average Overweight (x) 3 | . 4 2 Largest Inventory Capacity 20 | 8 20 20 Average Capacity 18 | 7 19 20 Most Carried 20 | 4 19 20 Average Carried 15 | 3 12 19 Final Capacity 20 | 8 20 20 Final Carried 19 | 4 19 18 Class Distribution -------------------- 100% | Mutant Dominant Class ---------------- Mutant | -10/Materials Mutant | -10/Subcaves Resources | -11 -10 -10 ----------- Run | Yrd Mat Sub Matter Collected 865 | 279 330 256 Remotely 107 | 10 97 . Salvage Created 861 | 96 493 272 Parts 55 | 4 30 21 Haulers Intercepted 1 | . 1 . Recyclers Shooed 1 | . 1 . Parts Field Recycled . | . . . Retrieved Matter . | . . . Parts Self-Destructed 11 | . . 11 Prevented . | . . . Kills | -11 -10 -10 ------- Run | Yrd Mat Sub Combat Hostiles Destroyed 23 | . 14 9 Guns 23 | . 14 9 Classes Destroyed 7 | 2 4 1 Tunneler 2 | 2 . . Hauler 1 | . 1 . Recycler 1 | 1 . . Watcher 1 | . 1 . Swarmer 10 | . 6 4 Grunt 8 | . 8 . Subdweller 5 | . . 5 Best Kill Streak 6 | 3 6 4 Combat Bots Only 6 | . 6 4 Max Kills in Single Turn 2 | 1 2 1 Gunslinging 1 | . 1 . Exploded . | . . . Melee . | . . . Uniques/NPCs Destroyed . | . . . Combat | -11 -10 -10 -------- Run | Yrd Mat Sub Hostile Shots Fired 164 | . 96 68 Missed 33 | . 15 18 Damage Taken 1484 | . 748 736 Core 266 | . 95 171 Absorbed by Shields . | . . . Core Remaining (%) 100 | 100 . . Volleys Fired 90 | 9 50 31 Largest 2 | 2 2 2 Hottest 73 | 70 73 53 Shots Fired 179 | 18 100 61 Gun 179 | 18 100 61 Cannon . | . . . Launcher . | . . . Special . | . . . Kinetic 132 | 9 62 61 Thermal 47 | 9 38 . Explosive . | . . . Electromagnetic . | . . . Robot Hit Streak 15 | 4 10 15 Robot Miss Streak 4 | 1 4 3 Penetration Max . | . . . Secondary Targets 4 | . 3 1 Max Gunslinging Chain 1 | . 1 1 Shots Hit Robots 109 | 12 60 37 Core Hits 44 | 6 24 14 Critical Kills . | . . . Critical Parts Destroyed 2 | . 2 . Critical Strikes 4 | . 4 . Burn 2 | . 2 . Destroy 2 | . 2 . Melee Attacks 7 | . 4 3 Impact 7 | . 4 3 Slashing . | . . . Piercing . | . . . Sneak Attacks . | . . . Combat Hostiles . | . . . Follow-up Attacks . | . . . Damage Inflicted 1525 | 132 793 600 Guns 1525 | 132 793 600 Cannons . | . . . Explosions . | . . . Melee . | . . . Ramming . | . . . Kinetic 1137 | 31 506 600 Thermal 388 | 101 287 . Explosive . | . . . Electromagnetic . | . . . Impact . | . . . Slashing . | . . . Piercing . | . . . Highest Corruption . | . . . Average Corruption . | . . . Corruption Purged . | . . . Corruption Blocked . | . . . Overload Shots . | . . . Overflow Damage . | . . . Projectiles . | . . . Explosions . | . . . Melee . | . . . Knockbacks . | . . . Impact . | . . . Kinetic . | . . . Secondary . | . . . Self-Inflicted Damage . | . . . Shots . | . . . Rammed . | . . . Targets Rammed . | . . . Kicked . | . . . Crushed . | . . . Highest Temperature 360 | 60 360 . Average Temperature 100 | 26 116 . Received Heat Transfer 348 | . 234 114 Effects 4 | . 4 . Interference 2 | . 2 . Matter Decay 1 | . 1 . Damage (minor) 1 | . 1 . Siege Activations . | . . . Robots Corrupted . | . . . Combat Hostiles . | . . . Parts Fried . | . . . Impact Corruptions . | . . . Robots Melted . | . . . Combat Hostiles . | . . . Parts Melted 4 | 1 3 . Heat Transferred 1295 | 296 999 . Parts Sabotaged . | . . . Parts Stolen . | . . . Parts Stripped . | . . . Power Chain Reactions . | . . . Alert | -11 -10 -10 ------- Run | Yrd Mat Sub Peak Influence 249 | 15 249 . Initial 9 | . 9 . Average 108 | 5 124 . Maximum Alert Level 1 | . 1 . Low Security (%) 97 | 100 96 . Level 1 2 | . 3 . Level 2 . | . . . Level 3 . | . . . Level 4 . | . . . Level 5 . | . . . High Security . | . . . Max Security . | . . . Squads Dispatched 3 | . 3 . Investigation 3 | . 3 . Extermination . | . . . Reinforcement . | . . . Assault . | . . . Garrison . | . . . Intercept . | . . . Searches Triggered . | . . . Construction Impeded . | . . . Haulers Reinforced . | . . . Active Scanning Responses . | . . . Cargo Convoy Interrupts . | . . . Stealth | -11 -10 -10 --------- Run | Yrd Mat Sub Distress Signals . | . . . Communications Jammed . | . . . Distress Signals . | . . . Times Spotted 29 | . 17 12 Peak Tracking Total 7 | . 7 4 Tactical Retreats 1 | . . 1 Traps | -11 -10 -10 ------- Run | Yrd Mat Sub Traps Triggered 1 | . 1 . Indirectly . | . . . Trap Hack Attempts . | . . . Triggered . | . . . Disarmed . | . . . Reprogrammed . | . . . Reused . | . . . Traps Extracted . | . . . Installed . | . . . Triggered . | . . . Most Traps Carried 2 | . . 2 Machines | -11 -10 -10 ---------- Run | Yrd Mat Sub Machines Disabled . | . . . Max in Single Turn . | . . . Machines Repaired . | . . . Machines Dismantled . | . . . Machines Sabotaged . | . . . Overloaded Fab Kills . | . . . Hacking | -11 -10 -10 --------- Run | Yrd Mat Sub Machines Accessed 7 | . 7 . Terminals 6 | . 6 . Fabricators . | . . . Repair Stations . | . . . Recycling Units 1 | . 1 . Scanalyzers . | . . . Garrison Access . | . . . Total Hacks 21 | . 21 . Successful 10 | . 10 . Failed 10 | . 10 . Catastrophic 2 | . 2 . Database Lockouts 1 | . 1 . Manual 5 | . 5 . Terminals 19 | . 19 . Fabricators . | . . . Repair Stations . | . . . Recycling Units 2 | . 2 . Scanalyzers . | . . . Garrison Access . | . . . Terminal Hacks 9 | . 9 . Part Schematic 1 | . 1 . Robot Analysis 1 | . 1 . Prototype ID Bank 2 | . 2 . Locate Traps 2 | . 2 . Recall Investigation 1 | . 1 . Hauler Manifests 1 | . 1 . Zone Layout 1 | . 1 . Fabricator Hacks . | . . . Repair Station Hacks . | . . . Recycling Unit Hacks 1 | . 1 . Report Inventory 1 | . 1 . Scanalyzer . | . . . Garrison Access Hacks . | . . . Unauthorized Hacks . | . . . Terminals . | . . . Fabricators . | . . . Repair Stations . | . . . Recycling Units . | . . . Scanalyzers . | . . . Garrison Access . | . . . Data Cores Recovered . | . . . Used . | . . . Hacking Detections 5 | . 5 . Full Trace Events 2 | . 2 . Feedback Events . | . . . Feedback Blocked . | . . . Robot Schematics Acquired . | . . . Robots Built . | . . . Authchips . | . . . Time . | . . . Total Robot Build Rating . | . . . Part Schematics Acquired 1 | . 1 . Parts Built . | . . . Authchips . | . . . Time . | . . . Total Part Build Rating . | . . . Parts Repaired . | . . . Time . | . . . Parts Recycled . | . . . Recycled Matter . | . . . Retrieved Matter . | . . . Retrieved Components . | . . . Parts Scanalyzed . | . . . Part Schematics Acquired . | . . . Parts Damaged . | . . . Bothacking | -11 -10 -10 ------------ Run | Yrd Mat Sub Used RIF Installer . | . . . Robots Hacked . | . . . Non-combat . | . . . Combat . | . . . Robot Hacks Applied . | . . . Relay Couplers Released . | . . . Fabnet Peak Effective % . | . . . Robots Rewired . | . . . Allies Hacked . | . . . Hacks Repelled . | . . . Allies | -11 -10 -10 -------- Run | Yrd Mat Sub Total Allies . | . . . Largest Group . | . . . Highest-Rated Group . | . . . Highest-Rated Ally . | . . . Total Orders . | . . . Ally Attacks . | . . . Total Damage . | . . . Kills . | . . . Allies Corrupted . | . . . Allies Melted . | . . . Intel | -11 -10 -10 ------- Run | Yrd Mat Sub Robot Analysis Total 1 | . 1 . Derelict Logs Recovered 1 | . . 1 Drone Launches . | . . . Drone Recoveries . | . . . Exploration | -11 -10 -10 ------------- Run | Yrd Mat Sub Turns Passed 1899 | 131 796 972 Spaces Moved 1036 | 61 372 603 Core 3 | 3 . . Treads 80 | 56 24 . Legs . | . . . Wheels 953 | 2 348 603 Hover . | . . . Flight . | . . . Fastest Speed 50 | 50 140 130 Average Speed 141 | 151 148 135 Slowest Speed 320 | 160 320 155 Overloaded Moves . | . . . Propulsion Burnouts . | . . . Robots Hopped . | . . . Cave-ins Triggered . | . . . Exploration Rate (%) 43 | 3 75 51 Regions Visited 2 Branch Regions 1 Pre-discovered Areas . | . . . Known Exits Taken . | . . . Unknown Exits Taken 2 | 1 1 . Scrap Searched 3 | . . 3 Spaces Dug 1 | . 1 . Terrain Destroyed 1 | . 1 . Melee 1 | . 1 . Projectile . | . . . AOE . | . . . Terrain Rammed . | . . . Walls Destroyed . | . . . Machines Disabled . | . . . Actions | -11 -10 -10 --------- Run | Yrd Mat Sub Total 1295 | 80 510 705 Wait 85 | . 46 39 Move 1034 | 60 371 603 Hop . | . . . Pick Up 34 | 4 20 10 Fast Attach 9 | 7 . 2 Attach 8 | . 4 4 Detach . | . . . Swap 14 | . 10 4 Drop 14 | . 5 9 Fire 90 | 9 50 31 Melee 7 | . 4 3 Ram . | . . . Kick . | . . . Crush . | . . . Escape Stasis . | . . . Rewire . | . . . Trap . | . . . Miscellaneous . | . . . Route ------- -11/Scrapyard -10/Materials (discovered 5 exits: [*Mat x2] / [*Min x2] / [*Sub]) -10/Subcaves (discovered 1 exit: [*Rec]) History --------- Turn | Location | Event 48 | -11/Scrapyard | Discovered new exit (range 12) 132 | -11/Scrapyard | Entered Materials 265 | -10/Materials | Central database locked down 281 | -10/Materials | Discovered new exit (range 12) 306 | -10/Materials | Build established: Mutant 532 | -10/Materials | Lost 3 parts (1p2n) 575 | -10/Materials | Discovered new exit (range 7) 738 | -10/Materials | Discovered new exit (range 12) 794 | -10/Materials | Discovered new exit (range 13) 923 | -10/Materials | Discovered new exit (range 3) 928 | -10/Materials | Entered Subcaves 935 | -10/Subcaves | Learned Materials interactive machine intel 1124 | -10/Subcaves | Disturbed a concealed Subdweller 1176 | -10/Subcaves | Shifting Twisted Machinery released Barrage Gun 1264 | -10/Subcaves | Ambushed by Subdwellers from Twisted Machinery 1306 | -10/Subcaves | Core integrity fell below 50% 1610 | -10/Subcaves | Discovered new exit (range 15) 1888 | -10/Subcaves | A Subdweller sparked back to life 1888 | -10/Subcaves | A Subdweller sparked back to life 1888 | -10/Subcaves | A Subdweller sparked back to life 1889 | -10/Subcaves | Core integrity fell below 20% 1900 | -10/Subcaves | Destroyed by M1-BGX(R) with Subdweller Machine Gun Last Messages --------------- 01706_ Dropped Broken Sub. Optics. 01711_ Subatomizers dissect the Broken Sub. Optics. 01868_ Searching scrap... 01868_ Found Sub. Laser. 01868_ Found Piercing Trap. 01868_ Found 20 Matter. 01869_ Acquired 20 matter. 01871_ Acquired Piercing Trap. 01875_ Acquired Sub. Laser. 01888_ 35-FHI(R) creaks and sparks as it begins to move. 01888_ HM-NL3(R) creaks and sparks as it begins to move. 01888_ M1-BGX(R) creaks and sparks as it begins to move. 01889_ 35-FHI(R) destroyed. 01890_ Sub. Power Source destroyed. 01894_ Battle Rifle destroyed. 01898_ HM-NL3(R) destroyed. Map ----- +----------------------------------------------------+ | ?????????????????????????????????????????????????? | | ?????????????????????????????????????????????????? | | ?????????????????????????????????????????????????? | | ?????????????????????????????????????????????????? | | ?????????????????????????????????????????????????? | | ?????????????????????????????????????????????????? | | ?????????????????????????????????????????????????? | | ?????????????????????????????????????????????????? | | ?????????????????????????????????????????????????? | | ?????????????????????????????????????????????????? | | ?????????????????????????????????????????????????? | | ?????????????????????????????????????????????????? | | ???##?????????#####??????????????????????????????? | | ???# ##??????## ##???????????####????#?????????? | | ???# ######## ##?????????## #### #?????????? | | ???# ## #????????## ???????????? | | #### #####???## # ## ##????????? | | #?### ##???????? | | ##### ### #???????? | | ######## ## # ### #??????? | | ### #### ## ####???####??????? | | #?# #### ##????????????????? | | ####?# ##?# < ##?????????????????? | | #####????###??#